fUSD/lending_fUSD_20251222
["ID","MTS","AMOUNT","RATE_DAILY","PERIOD"]
[399464168,1766379040880,-500.0,0.00016438,2]
[399464169,1766379040890,-500.0,0.00016438,2]
[399464170,1766379040899,-500.0,0.00016438,2]
[399464171,1766379040908,-500.0,0.00016438,2]
[399464172,1766379040917,-500.0,0.00016438,2]
[399464173,1766379040927,-500.0,0.00016438,2]
[399464174,1766379040936,-481.4478698,0.00016438,2]
[399464175,1766379040945,-500.0,0.00016438,2]
[399464176,1766379040954,-500.0,0.00016438,2]
[399464177,1766379040963,-500.0,0.00016438,2]
[399464178,1766379040973,-250.0,0.00016438,2]
[399464179,1766379040982,-500.0,0.00016438,2]
[399464180,1766379040991,-500.0,0.00016438,2]
[399464181,1766379041004,-500.0,0.00016438,2]
[399464182,1766379041014,-10430.17,0.00016438,2]
[399464183,1766379041023,-500.0,0.00016473,2]
[399464184,1766379041032,-581.27415104,0.00016473,2]
[399464185,1766379041042,-500.0,0.00016473,2]
[399464186,1766379041052,-500.0,0.00016473,2]
[399464187,1766379041061,-500.0,0.00016473,2]
[399464188,1766379041073,-500.0,0.00016473,2]
[399464189,1766379041082,-500.0,0.00016473,2]
[399464190,1766379041092,-500.0,0.00016473,2]
[399464191,1766379041101,-500.0,0.00016473,2]
[399464192,1766379041111,-500.0,0.00016473,2]
[399464193,1766379041120,-500.0,0.00016473,2]
[399464194,1766379041129,-500.0,0.00016473,2]
[399464195,1766379041138,-500.0,0.00016473,2]
[399464196,1766379041148,-502.13430343,0.00016473,2]
[399464197,1766379041157,-500.0,0.00016473,2]
[399464198,1766379041166,-500.0,0.00016473,2]
[399464199,1766379041175,-500.0,0.00016473,2]
[399464200,1766379041184,-500.0,0.00016473,2]
[399464201,1766379041194,-500.0,0.00016473,2]
[399464202,1766379041203,-356.16077878,0.00016473,2]
[399464203,1766379041212,-577.70558009,0.00016473,2]
[399464204,1766379041221,-257.18076506,0.00016473,2]
[399464205,1766379041231,-500.0,0.00016473,2]
[399464206,1766379041240,-500.0,0.00016473,2]
[399464207,1766379041249,-500.0,0.00016473,2]
[399464208,1766379041258,-250.0,0.00016535,2]
[399464209,1766379041267,-8089.52833438,0.00016541,2]
[399464210,1766379041277,-3018.19191469,0.0001666,2]
[399464211,1766379041286,-1626.9,0.00016697,2]
[399464212,1766379041296,-164.38,0.00016712,2]
[399464213,1766379041305,-736.0,0.00016764,2]
[399464214,1766379041315,-271.0,0.000168,2]
[399464215,1766379041324,-1000.0,0.000168,2]
[399464216,1766379041334,-166.66,0.00016801,2]
[399464217,1766379041343,-918.9,0.00016847,2]
[399464218,1766379041352,-200.0,0.00016863,2]
[399464219,1766379041361,-200.0,0.00016864,2]
[399464220,1766379041370,-200.0,0.00016864,2]
[399464221,1766379041379,-200.0,0.00016864,2]
[399464222,1766379041388,-10000.0,0.000169,2]
[399464223,1766379041398,-209.83049644,0.000169,3]
[399464224,1766379041407,-8089.52833438,0.000169,2]
[399464225,1766379041416,-10944.0,0.000169,2]
[399464226,1766379041426,-1000.0,0.00016909,2]
[399464227,1766379041435,-224.06009191,0.00016918,2]
[399464228,1766379041445,-9999.99,0.00016922,2]
[399464229,1766379041454,-13319.74,0.00016922,2]
[399464230,1766379041464,-1626.9,0.00016971,2]
[399464231,1766379041473,-232.9120576,0.00016973,2]
[399464232,1766379041482,-151.0,0.00016997,2]
[399464233,1766379041492,-159.2463589,0.00016999,2]
[399464234,1766379041501,-150.0,0.00016999,2]
[399464235,1766379041510,-671.19063169,0.00016999,2]
[399464236,1766379041519,-300.0,0.00016999,2]
[399464237,1766379041529,-300.0,0.00016999,2]
[399464238,1766379041538,-422.483672,0.00016999,2]
[399464239,1766379041547,-300.0,0.00016999,2]
[399464240,1766379041556,-300.0,0.00016999,2]
[399464241,1766379041566,-666.0,0.00016999,2]
[399464242,1766379041575,-286.35680258,0.00016999,2]
[399464243,1766379041584,-300.0,0.00016999,2]
[399464244,1766379041594,-666.0,0.00016999,2]
[399464245,1766379041603,-300.0,0.00016999,2]
[399464246,1766379041612,-300.0,0.00016999,2]
[399464247,1766379041622,-666.0,0.00016999,2]
[399464248,1766379041631,-300.0,0.00016999,2]
[399464249,1766379041641,-4643344.52959021,0.00017,2]
[399464250,1766379041663,-71674.6779888,0.00017,2]
[399464251,1766379041675,-17106.89637393,0.00017,2]
[399464252,1766379041687,-2250.44360571,0.00017,2]
[399464253,1766379041698,-8140.29690876,0.00017,2]
[399464254,1766379041709,-938.9739842,0.00017,2]
[399464255,1766379041720,-1336.05,0.00017,2]
[399464256,1766379041745,-942.19430236,0.00017,2]
[399464263,1766379042551,-1791.1003985,0.00017,2]
[399464264,1766379042563,-384.996,0.00017,2]
[399464265,1766379042573,-17000.88462548,0.00017,2]
[399464266,1766379042609,-999.00254141,0.00017,2]
[399464302,1766379045578,-74257.69775291,0.00017,2]
[399464303,1766379045589,-922.49989133,0.00017,2]
[399464304,1766379045604,-538.9811538,0.00017,2]
[399464305,1766379045618,-598.44994,0.00017,2]
[399464306,1766379045743,-3644.00857318,0.00017,2]
[399464307,1766379045852,-1162.91213938,0.00017,2]
[399464311,1766379730578,5525.0,0.000127,5]
[399464312,1766379793549,5525.0,0.000134,5]
[399464313,1766379825457,5525.0,0.000134,5]
[399464315,1766379857059,5525.0,0.000134,5]
[399464316,1766379888447,3887.0,0.000134,5]
[399464322,1766380231479,-195.0,0.00013212,2]
[399464323,1766380231490,-209.53844161,0.00013333,2]
[399464324,1766380231535,-416.97000018,0.00013333,2]
[399464325,1766380231546,-467.45030931,0.00013333,2]
[399464326,1766380231557,-106.0412489,0.00013333,2]
[399464327,1766380231566,-340.95768481,0.00013334,2]
[399464328,1766380231578,-349.45672614,0.00013334,2]
[399464329,1766380231593,-462.11065713,0.00013334,2]
[399464330,1766380231604,-47.47493192,0.00013334,2]
[399464331,1766380231613,-300.0,0.00013334,2]
[399464332,1766380231623,-300.0,0.00013334,2]
[399464333,1766380231633,-4347.26501126,0.00013335,2]
[399464334,1766380231646,-306.54498874,0.00013335,2]
[399464335,1766380231655,-195.0,0.0001334,2]
[399464336,1766380231665,-74.07686566,0.0001361,2]
[399464337,1766380231679,-434.30330845,0.0001361,2]
[399464340,1766380231747,-491.61982589,0.0001361,2]
[399464341,1766380231756,-1050.21920627,0.000137,2]
[399464342,1766380231766,-500.0,0.00013709,2]
[399464343,1766380231776,-1125.96749806,0.00013741,2]
[399464344,1766380231786,-1000.0,0.000139,2]
[399464345,1766380231795,-150.0,0.00013933,2]
[399464346,1766380231804,-195.0,0.00013934,2]
[399464347,1766380231814,-264.35832401,0.00013934,2]
[399464348,1766380231824,-300.0,0.00013934,2]
[399464349,1766380231834,-300.0,0.00013934,2]
[399464350,1766380231844,-300.0,0.00013934,2]
[399464351,1766380231854,-300.0,0.00013934,2]
[399464352,1766380231863,-300.0,0.00013934,2]
[399464353,1766380231873,-300.0,0.00013934,2]
[399464354,1766380231883,-300.0,0.00013934,2]
[399464355,1766380231892,-300.0,0.00013934,2]
[399464356,1766380231901,-300.0,0.00013934,2]
[399464357,1766380231910,-300.0,0.00013934,2]
[399464358,1766380231919,-300.0,0.00013934,2]
[399464359,1766380231929,-300.0,0.00013934,2]
[399464360,1766380231938,-5000.0,0.00013934,4]
[399464361,1766380231947,-540.21663378,0.00013934,4]
[399464362,1766380237661,-990.98677168,0.00013934,4]
[399464363,1766380237672,-292.696336,0.00013934,4]
[399464364,1766380237774,-3176.10025854,0.00013934,4]
[399464365,1766380237784,-184.47807615,0.00013934,4]
[399464366,1766380237793,-195.0,0.00013934,2]
[399464367,1766380237803,-163.83,0.00014,2]
[399464368,1766380237812,-500.0,0.00014389,2]
[399464369,1766380237821,-241.60551601,0.00014389,2]
[399464370,1766380237830,-500.0,0.00014389,2]
[399464371,1766380237840,-176.76733324,0.00014389,2]
[399464372,1766380237849,-14147.26,0.0001439,2]
[399464373,1766380237859,-195.0,0.00014399,2]
[399464374,1766380237868,-250.0,0.00014533,2]
[399464375,1766380237877,-420.0,0.00014618,2]
[399464376,1766380237887,-1680.0,0.00014666,2]
[399464377,1766380237897,-150.99,0.00014668,2]
[399464378,1766380237906,-9999.99,0.00014668,2]
[399464379,1766380237915,-299.99,0.00014668,2]
[399464381,1766380237924,-999.0,0.00014765,3]
[399464383,1766380237934,-152.61,0.0001482,2]
[399464384,1766380237943,-150.0,0.00014826,2]
[399464386,1766380237953,-5689.47,0.0001483,2]
[399464388,1766380237962,-166.66,0.00014931,2]
[399464390,1766380237971,-255.0,0.00015048,2]
[399464392,1766380237980,-1076.21115037,0.0001505,2]
[399464394,1766380237990,-472.91,0.00015118,2]
[399464396,1766380238000,-500.0,0.00015175,2]
[399464398,1766380238009,-21404.84,0.00015223,2]
[399464400,1766380238018,-166.66,0.00015246,2]
[399464402,1766380238027,-422.6690694,0.00015309,2]
[399464404,1766380238037,-9999.99,0.0001531,2]
[399464406,1766380238046,-13319.74,0.0001531,2]
[399464408,1766380238056,-1459.99820978,0.00015434,2]
[399464411,1766380238065,-151.0,0.00015513,2]
[399464413,1766380238075,-151.0,0.00015516,2]
[399464415,1766380238084,-151.0,0.00015529,2]
[399464417,1766380238093,-15708.21,0.00015556,2]
[399464419,1766380238103,-166.66,0.0001556,2]
[399464421,1766380238112,-500.0,0.00015863,2]
[399464423,1766380238122,-166.66,0.00015874,2]
[399464425,1766380238131,-150.0,0.00015933,2]
[399464427,1766380238144,-587.0,0.00016026,2]
[399464429,1766380238153,-26170.03,0.00016107,2]
[399464431,1766380238164,-2351.0,0.00016133,2]
[399464433,1766380238174,-1626.9,0.00016149,2]
[399464435,1766380238183,-151.0,0.00016149,2]
[399464437,1766380238192,-156.587,0.00016149,2]
[399464439,1766380238201,-162.380719,0.00016149,2]
[399464441,1766380238211,-153.6660154,0.00016149,2]
[399464443,1766380238221,-151.0,0.00016149,2]
[399464445,1766380238230,-500.0,0.00016149,2]
[399464447,1766380238240,-352.57653345,0.00016149,2]
[399464449,1766380238249,-200.0,0.00016149,2]
[399464451,1766380238258,-207.4,0.00016149,2]
[399464453,1766380238268,-215.0738,0.00016149,2]
[399464455,1766380238278,-223.0315306,0.00016149,2]
[399464457,1766380238289,-231.28369723,0.00016149,2]
[399464459,1766380238299,-239.84119403,0.00016149,2]
[399464461,1766380238312,-248.71531821,0.00016149,2]
[399464463,1766380238321,-257.91778498,0.00016149,2]
[399464465,1766380238331,-267.46074303,0.00016149,2]
[399464467,1766380238341,-166.66,0.00016189,2]
[399464469,1766380238350,-425.2,0.00016207,2]
[399464471,1766380238359,-433.0,0.00016246,2]
[399464473,1766380238369,-5662.66983412,0.00016338,2]
[399464475,1766380238379,-5662.66983406,0.000164,2]
[399464477,1766380238389,-1626.9,0.00016423,2]
[399464479,1766380238398,-500.0,0.00016438,2]
[399464481,1766380238408,-500.0,0.00016438,2]
[399464483,1766380238417,-500.0,0.00016438,2]
[399464485,1766380238426,-500.0,0.00016438,2]
[399464487,1766380238435,-500.0,0.00016438,2]
[399464489,1766380238444,-500.0,0.00016438,2]
[399464491,1766380238453,-500.0,0.00016438,2]
[399464493,1766380238463,-500.0,0.00016438,2]
[399464495,1766380238474,-500.0,0.00016438,2]
[399464497,1766380238483,-500.0,0.00016438,2]
[399464499,1766380238494,-500.0,0.00016438,2]
[399464501,1766380238503,-500.0,0.00016438,2]
[399464503,1766380238513,-500.0,0.00016438,2]
[399464505,1766380238522,-500.0,0.00016438,2]
[399464507,1766380238531,-500.0,0.00016438,2]
[399464509,1766380238540,-500.0,0.00016438,2]
[399464511,1766380238550,-500.0,0.00016438,2]
[399464513,1766380238559,-500.0,0.00016438,2]
[399464515,1766380238568,-500.0,0.00016438,2]
[399464517,1766380238577,-500.0,0.00016438,2]
[399464519,1766380238587,-331.4478698,0.00016438,2]
[399464521,1766380238596,-500.0,0.00016438,2]
[399464523,1766380238604,-500.0,0.00016438,2]
[399464525,1766380238613,-500.0,0.00016438,2]
[399464527,1766380238623,-500.0,0.00016438,2]
[399464529,1766380238632,-500.0,0.00016438,2]
[399464531,1766380238641,-500.0,0.00016438,2]
[399464533,1766380238650,-500.0,0.00016438,2]
[399464535,1766380238659,-5662.66983406,0.00016463,2]
[399464537,1766380238669,-2966.0,0.00016465,2]
[399464539,1766380238679,-500.0,0.00016473,2]
[399464541,1766380238688,-500.0,0.00016473,2]
[399464543,1766380238697,-500.0,0.00016473,2]
[399464545,1766380238710,-581.27415104,0.00016473,2]
[399464547,1766380238719,-500.0,0.00016473,2]
[399464549,1766380238729,-500.0,0.00016473,2]
[399464551,1766380238740,-356.16077878,0.00016473,2]
[399464553,1766380238749,-500.0,0.00016473,2]
[399464555,1766380238759,-500.0,0.00016473,2]
[399464557,1766380238768,-500.0,0.00016473,2]
[399464559,1766380238778,-500.0,0.00016473,2]
[399464561,1766380238787,-577.70558009,0.00016473,2]
[399464563,1766380238796,-500.0,0.00016473,2]
[399464565,1766380238804,-500.0,0.00016473,2]
[399464567,1766380238814,-500.0,0.00016473,2]
[399464569,1766380238823,-500.0,0.00016473,2]
[399464571,1766380238832,-500.0,0.00016473,2]
[399464573,1766380238841,-502.13430343,0.00016473,2]
[399464575,1766380238850,-500.92519729,0.00016473,2]
[399464577,1766380238859,-570.44343091,0.00016473,2]
[399464579,1766380238869,-162.4264826,0.00016473,2]
[399464580,1766380238879,-500.0,0.00016473,2]
[399464583,1766380238889,-500.0,0.00016473,2]
[399464585,1766380238898,-500.0,0.00016473,2]
[399464587,1766380238907,-500.0,0.00016473,2]
[399464588,1766380238916,-500.0,0.00016473,2]
[399464591,1766380238926,-500.0,0.00016473,2]
[399464593,1766380238935,-500.0,0.00016473,2]
[399464595,1766380238944,-257.18076506,0.00016473,2]
[399464597,1766380238954,-182.249,0.00016476,2]
[399464599,1766380238963,-166.66,0.00016503,2]
[399464601,1766380238972,-5662.66983406,0.00016525,2]
[399464602,1766380238983,-5662.66983406,0.00016588,2]
[399464605,1766380238995,-5662.66983406,0.0001665,2]
[399464606,1766380239004,-3018.19191469,0.0001666,2]
[399464609,1766380239014,-1626.9,0.00016697,2]
[399464611,1766380239024,-5662.66983406,0.00016713,2]
[399464612,1766380239034,-2966.0,0.00016756,2]
[399464614,1766380239044,-2966.0,0.00016756,2]
[399464616,1766380239054,-201.47691223,0.00016759,2]
[399464618,1766380239064,-1008.34293728,0.000168,2]
[399464621,1766380239074,-187.56540729,0.000168,2]
[399464622,1766380239084,-334.19790008,0.000168,2]
[399464625,1766380239094,-5782.87768614,0.000168,2]
[399464627,1766380239103,-5782.87768612,0.00016811,2]
[399464629,1766380239113,-5782.87768612,0.00016822,2]
[399464630,1766380239123,-5782.87768612,0.00016833,2]
[399464632,1766380239132,-918.9,0.00016837,2]
[399464635,1766380239142,-5782.87768612,0.00016844,2]
[399464637,1766380239152,-334.19790006,0.0001685,2]
[399464639,1766380239161,-5782.87768612,0.00016856,2]
[399464640,1766380239171,-200.0,0.00016863,2]
[399464642,1766380239181,-200.0,0.00016864,2]
[399464644,1766380239191,-200.0,0.00016864,2]
[399464646,1766380239202,-200.0,0.00016864,2]
[399464648,1766380239212,-5782.87768612,0.00016867,2]
[399464650,1766380239223,-5782.87768612,0.00016878,2]
[399464652,1766380239233,-271.0,0.0001688,2]
[399464654,1766380239247,-993.39878029,0.0001689,2]
[399464656,1766380239257,-1007.25049637,0.00016899,5]
[399464659,1766380239267,-1230.57350397,0.00016899,5]
[399464660,1766380239278,-334.19790006,0.00016899,2]
[399464662,1766380239289,-500.0,0.00016899,2]
[399464664,1766380239299,-150.0,0.00016899,2]
[399464667,1766380239312,-500.0,0.00016899,2]
[399464668,1766380239322,-500.0,0.00016899,2]
[399464670,1766380239332,-451.43777448,0.00016899,2]
[399464673,1766380239343,-5019.9431212,0.000169,2]
[399464675,1766380239353,-10000.0,0.000169,2]
[399464676,1766380239362,-499337.50160952,0.000169,2]
[399464679,1766380239377,-611.20545117,0.000169,2]
[399464718,1766380239735,-1137.33626581,0.00016889,2]
[399464720,1766380239748,-1820.89468532,0.00016889,2]
[399464722,1766380239759,-2824.64673499,0.00016889,2]
[399464724,1766380239769,-500051.29293931,0.000169,2]
[399464726,1766380239779,-243.55353699,0.000169,3]
[399464728,1766380239789,-902.48239174,0.000169,2]
[399464730,1766380239798,-246.85249798,0.000169,2]
[399464732,1766380239807,-256.92797377,0.000169,2]
[399464734,1766380239817,-10939.0,0.000169,2]
[399464736,1766380239826,-2966.0,0.00016902,2]
[399464738,1766380239836,-250.0,0.00016933,2]
[399464740,1766380239845,-2966.0,0.00016943,2]
[399464742,1766380239854,-304.0,0.00016959,2]
[399464744,1766380239865,-1626.9,0.00016971,2]
[399464746,1766380239874,-150.0,0.00016973,2]
[399464748,1766380239883,-993.39878029,0.0001699,2]
[399464750,1766380239894,-993.39878029,0.0001699,2]
[399464752,1766380239904,-151.0,0.00016996,2]
[399464754,1766380239916,-151.0,0.00016997,2]
[399464756,1766380239926,-300.0,0.00016999,2]
[399464792,1766380240246,-666.0,0.00016999,2]
[399464795,1766380240271,-3403.2869195,0.00016999,2]
[399464797,1766380240281,-300.0,0.00016999,2]
[399464799,1766380240290,-676.23992225,0.00016999,2]
[399464801,1766380240304,-1007.25049637,0.00016999,5]
[399464803,1766380240313,-1007.25049637,0.00016999,5]
[399464805,1766380240323,-1007.25049639,0.00016999,5]
[399464807,1766380240332,-300.0,0.00016999,2]
[399464809,1766380240342,-2552.4651895,0.00016999,2]
[399464811,1766380240355,-702912.6831883,0.00016999,2]
[399464813,1766380240364,-300.0,0.00016999,2]
[399464815,1766380240376,-666.0,0.00016999,2]
[399464817,1766380240394,-8791.8245419,0.00016999,2]
[399464819,1766380240403,-300.0,0.00016999,2]
[399464821,1766380240413,-300.0,0.00016999,2]
[399464823,1766380240422,-850.8217298,0.00016999,2]
[399464825,1766380240431,-80448.2407895,0.00016999,2]
[399464828,1766380240441,-3716099.51859648,0.00017,2]
[399464835,1766380242751,-504.01630053,0.00016711,2]
[399464836,1766380242808,-126.12029947,0.00016711,2]
[399464837,1766380242818,-313.04754196,0.00016775,2]
[399464838,1766380242830,-5349.6222921,0.00016775,2]
[399464839,1766380242839,-861147.68293764,0.00017,2]
[399464840,1766380242851,-1299.0,0.00017,2]
[399464844,1766380245615,-151.0,0.00016124,2]
[399464845,1766380245625,-783.65480264,0.000169,2]
[399464846,1766380245636,-533.9999989,0.000169,2]
[399464847,1766380245646,-693.44320348,0.000169,2]
[399464848,1766380245658,-3771.7796811,0.000169,2]
[399464849,1766380245667,-90373.64851481,0.00017,2]
[399464850,1766380245676,-73472.58630394,0.00017,2]
[399464851,1766380245840,-86473.14654176,0.00017,2]
[399464852,1766380245896,-5823.65458347,0.00017,2]
[399464853,1766380245908,-1063.53697006,0.00017,2]
[399464854,1766380635996,576.2147114,0.000176,30]
[399464855,1766380636051,487.78208904,0.000176,30]
[399464856,1766380685749,500.0,0.00013659,3]
[399464857,1766380993384,1000.0,0.00021,30]
[399464858,1766381026304,1000.0,0.00021,30]
[399464859,1766381155414,1000.0,0.00022,38]
[399464872,1766381432380,-195.0,0.00012744,2]
[399464873,1766381432389,-165.37,0.00012744,2]
[399464874,1766381432399,-207.5686135,0.00012773,2]
[399464875,1766381432428,-351.80482366,0.00012773,2]
[399464876,1766381432443,-940.0,0.00012773,2]
[399464891,1766381437796,-1740.62656284,0.00012773,2]
[399464892,1766381437809,-500.0,0.00012842,2]
[399464894,1766381437818,-1200.0,0.00012988,2]
[399464896,1766381437827,-300.0,0.00012988,2]
[399464897,1766381437836,-300.0,0.00012988,2]
[399464899,1766381437845,-150.0,0.00012989,2]
[399464900,1766381437854,-500.0,0.00012989,2]
[399464901,1766381437863,-241.60551601,0.00012989,2]
[399464902,1766381437872,-242.79480024,0.00012989,2]
[399464903,1766381437883,-257.20519976,0.00012989,2]
[399464904,1766381437892,-487.95473856,0.00012989,2]
[399464905,1766381437902,-604.74717197,0.0001299,2]
[399464906,1766381437913,-3081.67201092,0.0001299,2]
[399464907,1766381437924,-40306.55899236,0.0001299,2]
[399464908,1766381437933,-10434.08,0.00013342,2]
[399464909,1766381437943,-2191.27566507,0.00013437,2]
[399464910,1766381437953,-1600.0,0.00013441,2]
[399464911,1766381437962,-166.66,0.00013496,2]
[399464912,1766381437970,-511667.03558116,0.00013543,2]
[399464913,1766381437981,-2226.80422312,0.00013543,2]
[399464914,1766381438001,-486106.16019572,0.00013543,2]
[399464915,1766381438010,-500.0,0.00013643,2]
[399464916,1766381438019,-500.0,0.00013643,2]
[399464917,1766381438029,-500.0,0.00013643,2]
[399464919,1766381438039,-150.99,0.00013643,2]
[399464920,1766381438053,-299.99,0.00013643,2]
[399464921,1766381438063,-9999.99,0.00013643,2]
[399464922,1766381438074,-500.0,0.00013643,2]
[399464923,1766381438084,-500.0,0.00013643,2]
[399464924,1766381438094,-500.0,0.00013643,2]
[399464926,1766381438103,-500.0,0.00013643,2]
[399464928,1766381438113,-222.91830755,0.00013643,2]
[399464930,1766381438123,-500.0,0.00013643,2]
[399464932,1766381438133,-500.0,0.00013643,2]
[399464933,1766381438143,-562.43328901,0.00013643,2]
[399464934,1766381438153,-500.0,0.00013643,2]
[399464935,1766381438163,-500.0,0.00013643,2]
[399464936,1766381438173,-550.36391425,0.00013643,2]
[399464937,1766381438183,-537.36765375,0.00013643,2]
[399464938,1766381438193,-535.43855747,0.00013643,2]
[399464939,1766381438202,-500.0,0.00013643,2]
[399464940,1766381438212,-500.0,0.00013643,2]
[399464941,1766381438222,-500.0,0.00013643,2]
[399464942,1766381438232,-500.0,0.00013643,2]
[399464943,1766381438243,-500.0,0.00013643,2]
[399464944,1766381438253,-453.73344194,0.00013643,2]
[399464945,1766381438263,-500.0,0.00013643,2]
[399464946,1766381438273,-500.0,0.00013643,2]
[399464947,1766381438282,-500.0,0.00013643,2]
[399464948,1766381438292,-235.68882783,0.00013643,2]
[399464949,1766381438302,-484.24574485,0.00013643,2]
[399464950,1766381438311,-500.0,0.00013643,2]
[399464951,1766381438322,-500.0,0.00013643,2]
[399464952,1766381438332,-500.0,0.00013643,2]
[399464953,1766381438342,-500.0,0.00013643,2]
[399464954,1766381438351,-500.0,0.00013643,2]
[399464955,1766381438361,-500.0,0.00013643,2]
[399464956,1766381438370,-500.0,0.00013643,2]
[399464957,1766381438380,-2056.87,0.00013643,2]
[399464958,1766381438390,-182.249,0.00013643,2]
[399464959,1766381438399,-500.0,0.00013643,2]
[399464960,1766381438408,-1000.0,0.00013699,2]
[399464961,1766381438418,-13743.3,0.00013699,2]
[399464962,1766381438431,-612.93,0.00013699,2]
[399464963,1766381438441,-13319.74,0.00013699,2]
[399464964,1766381438450,-9999.99,0.00013699,2]
[399464965,1766381438460,-500.0,0.00013699,2]
[399464966,1766381438469,-500.0,0.00013699,2]
[399464967,1766381438479,-500.0,0.00013699,2]
[399464968,1766381438488,-500.0,0.00013699,2]
[399464969,1766381438498,-500.0,0.00013699,2]
[399464970,1766381438507,-500.0,0.00013699,2]
[399464971,1766381438516,-500.0,0.00013699,2]
[399464972,1766381438526,-500.0,0.00013699,2]
[399464973,1766381438535,-500.0,0.00013699,2]
[399464974,1766381438545,-500.0,0.00013699,2]
[399464975,1766381438555,-500.0,0.00013699,2]
[399464976,1766381438564,-500.0,0.00013699,2]
[399464977,1766381438575,-500.0,0.00013699,2]
[399464978,1766381438584,-500.0,0.00013699,2]
[399464979,1766381438594,-590.90599916,0.00013699,2]
[399464980,1766381438603,-500.0,0.00013699,2]
[399464981,1766381438612,-500.0,0.00013699,2]
[399464982,1766381438622,-500.0,0.00013699,2]
[399464983,1766381438636,-500.0,0.00013699,2]
[399464984,1766381438646,-500.0,0.00013699,2]
[399464985,1766381438655,-500.0,0.00013699,2]
[399464986,1766381438675,-248.18,0.000137,2]
[399464987,1766381438685,-248.18,0.000137,2]
[399464988,1766381438695,-248.18,0.000137,2]
[399464989,1766381438704,-248.18,0.000137,2]
[399464990,1766381438714,-248.18,0.000137,2]
[399464991,1766381438724,-6714.30851759,0.00013718,2]
[399464992,1766381438734,-312.0,0.00013798,2]
[399464993,1766381438744,-25148.83872386,0.00013817,2]
[399464994,1766381438754,-334.19790008,0.00013817,2]
[399464995,1766381438763,-1210.0115247,0.00013818,2]
[399464996,1766381438772,-1490.09817043,0.00013823,2]
[399464997,1766381438782,-500.0,0.00013833,2]
[399464998,1766381438791,-359.86568137,0.00013833,2]
[399464999,1766381438801,-500.0,0.00013833,2]
[399465000,1766381438810,-500.0,0.00013833,2]
[399465001,1766381438819,-517.20935872,0.00013833,2]
[399465002,1766381438832,-500.0,0.00013833,2]
[399465003,1766381438841,-500.0,0.00013833,2]
[399465004,1766381438851,-500.0,0.00013833,2]
[399465005,1766381438860,-500.0,0.00013833,2]
[399465006,1766381438869,-500.0,0.00013833,2]
[399465007,1766381438878,-500.0,0.00013833,2]
[399465008,1766381438888,-500.0,0.00013833,2]
[399465009,1766381438897,-557.08917325,0.00013833,2]
[399465010,1766381438907,-513.1625593,0.00013833,2]
[399465011,1766381438916,-500.0,0.00013833,2]
[399465012,1766381438925,-500.0,0.00013833,2]
[399465013,1766381438935,-507.5550191,0.00013833,2]
[399465014,1766381438944,-500.0,0.00013833,2]
[399465015,1766381438953,-500.0,0.00013833,2]
[399465016,1766381438962,-500.0,0.00013833,2]
[399465017,1766381438971,-500.0,0.00013833,2]
[399465018,1766381438980,-500.0,0.00013833,2]
[399465019,1766381438990,-500.0,0.00013833,2]
[399465020,1766381439000,-500.0,0.00013833,2]
[399465021,1766381439009,-500.0,0.00013833,2]
[399465022,1766381439019,-500.0,0.00013833,2]
[399465023,1766381439028,-500.0,0.00013833,2]